[Event "BL 2017-18"]
[Site "Germany"]
[Date "2018.03.10"]
[Round "11"]
[White "Farmani Anosheh, Armin"]
[Black "Grigorian, Spartak"]
[Result "1/2-1/2"]
[ECO "E55"]
[WhiteElo "2325"]
[BlackElo "2354"]
[Annotator "NA"]
[PlyCount "62"]
[EventDate "2018.05.24"]
[EventType "team-tourn"]
[EventCountry "GER"]
[SourceTitle "playchess.com"]
[Source "ChessBase"]
[SourceQuality "1"]
[WhiteTeam "Speyer"]
[BlackTeam "Werder Bremen"]
[TimeControl "40/6000+30:3000+30"]

1. d4 {[%emt 0:00:00]} Nf6 {[%emt 0:00:06]} 2. c4 {[%emt 0:00:00]} e6 {[%emt 0:00:03]} 3. Nc3 {[%emt 0:00:54]} Bb4 {[%emt 0:00:06]} 4. e3 {[%emt 0:00:06]} O-O {[%emt 0:00:11]} 5. Bd3 {[%emt 0:00:31]} d5 {[%emt 0:00:26]} 6. Nf3 {[%emt 0:01:29]} c5 {[%emt 0:00:28]} 7. O-O {[%emt 0:00:15]} dxc4 {[%emt 0:00:17]} 8. Bxc4 {[%emt 0:00:58]} Nbd7 {[%emt 0:01:00]} 9. a3 {[%emt 0:18:57]} cxd4 {[%emt 0:04:11]} 10. Qxd4 {[%emt 0:18:11]} Bc5 {[%emt 0:20:31]} 11. Qd1 {[%emt 0:00:22]} b6 {[%emt 0:09:56]} 12. b4 {[%emt 0:04:21]} Be7 {[%emt 0:00:06]} 13. Bb2 {[%emt 0:00:34]} Bb7 {[%emt 0:03:55]} 14. Qb3 {[%emt 0:02:52]} Qb8 {[%emt 0:08:08]} 15. h3 {[%emt 0:08:10]} Bxf3 {[%emt 0:14:30]} 16. gxf3 {[%emt 0:00:06]} Qb7 {[%emt 0:00:12]} 17. f4 {[%emt 0:13:36]} Rfd8 {[%emt 0:18:43]} 18. Rfd1 {[%emt 0:01:58]} Rac8 {[%emt 0:03:46]} 19. Bf1 {[%emt 0:05:18]} Qf3 {[%emt 0:07:10]} 20. Bg2 {[%emt 0:02:38]} Qh5 {[%emt 0:00:52]} 21. Rd2 {[%emt 0:09:23]} Nf8 {[%emt 0:02:04]} 22. Rad1 {[%emt 0:00:13]} Ng6 {[%emt 0:01:59]} 23. Rxd8+ {[%emt 0:07:14]} Bxd8 {[%emt 0:00:01]} 24. Rd3 {[%emt 0:02:21]} Nh4 {[%emt 0:00:57]} 25. Qd1 {[%emt 0:00:20]} Qxd1+ {[%emt 0:02:10]} 26. Rxd1 {[%emt 0:00:03]} Nxg2 {[%emt 0:00:05]} 27. Kxg2 {[%emt 0:00:03]} Be7 {[%emt 0:01:17]} 28. Kf3 {[%emt 0:04:15]} Kf8 {[%emt 0:04:19]} 29. Rd4 {[%emt 0:01:51]} Ke8 {[%emt 0:02:12]} 30. Ke2 {[%emt 0:01:54]} Nd7 {[%emt 0:01:31]} 31. Rd2 {[%emt 0:03:37]} g6 {[%emt 0:01:23]} 1/2-1/2